Cogmind - Beta 9.3 @@@ ROGUE MODE // 2020.01.04 @ 19:32:43 // Winter2019/RPGLIKE Player: Pimski Result: Self-destructed Performance ------------- Evolutions (6) 3000 Regions Visited (20) 4000 Robots Destroyed (1) 5 Value Destroyed (127) 127 Prototype IDs (29) 580 Alien Tech Used (3) 600 Bonus (5225) 5225 TOTAL SCORE: 13537 Bonus ------- Pacifist 2932 Follower Combat Kills 593 Entered Garrisons 400 Used RIF Installer 1000 Met Zhirov 300 Cogmind --------- Core Integrity 583/600 Matter 300/300 Energy 365/365 System Corruption 0% Temperature Cool (0) Movement Flying (24) Location -4/Factory Parts ------- > --- POWER (2) -------- Micro Fission Core Fusion Reactor > --- PROPULSION (6) --- Cooled VTOL Module Cooled VTOL Module Cooled VTOL Module Cooled VTOL Module Nuclear Pulse Array > --- UTILITY (8) ------ Experimental Cooling System Long-range Sensor Array Advanced Signal Interpreter Improved Maneuvering Thrusters Advanced Thermal Shield Advanced Hacking Suite Advanced Hacking Suite Relay Coupler [Programmer] (154) > --- WEAPON (3) ------- Improved Remote Datajack Power Sword > --- INVENTORY (3) ---- Protomatter-51 Relay Coupler [Programmer] (164) Relay Coupler [Programmer] (160) Peak State ------------ > --- POWER ------------ Micro Fission Core Fusion Reactor > --- PROPULSION ------- Cooled VTOL Module Cooled VTOL Module Cooled VTOL Module Cooled VTOL Module Nuclear Pulse Array > --- UTILITY ---------- Advanced Heat Sink Experimental Cooling System Advanced Signal Interpreter Improved Maneuvering Thrusters Advanced Thermal Shield Advanced Hacking Suite Advanced Hacking Suite Relay Coupler [Programmer] > --- WEAPON ----------- Improved Remote Datajack Power Sword > --- INVENTORY -------- Protomatter Relay Coupler [Programmer] Relay Coupler [Programmer] [Rating: 104] Favorites ----------- Power Light Fission Core Engine Light Angular Momentum Engine Power Core Light Fission Core Reactor Fusion Reactor Propulsion Cooled VTOL Module Flight Unit Cooled VTOL Module Utility Advanced Heat Sink Device Advanced Heat Sink Storage Improved Matter Compressor Processor Advanced Signal Interpreter Hackware Hacking Suite Weapon Power Sword Ballistic Gun Light Assault Rifle Special Weapon Improved Remote Datajack Impact Weapon Flail Slashing Weapon Power Sword Special Melee Weapon Improved Datajack Build | -11 -10 -9 -9 -8 -8 -8 -8 -6 -6 -6 -6 -6 -6 -5 -5 -5 -5 -5 -4 -4 ------- Run | Scr Mat Mat Min Mat Sto Gar Rec Fac Gar Fac Low Low Zio Pro Fac Upp Upp Zhi Pro Fac Slots Evolved 14 | . 2 . . 2 1 . 1 1 . 3 . . 1 . 1 1 . . . 1 Power 1 | . . . . . 1 . . . . . . . . . . . . . . . Propulsion 5 | . 2 . . 2 . . . . . 1 . . . . . . . . . . Utility 7 | . . . . . . . 1 1 . 1 . . 1 . 1 1 . . . 1 Weapon 1 | . . . . . . . . . . 1 . . . . . . . . . . Parts Attached 43 | . 3 2 1 4 2 . 2 4 . 7 . 1 1 . 5 1 1 4 . 5 Power 7 | . . . . . 1 . 1 1 . 2 . . . . . . . 1 . 1 Engine 3 | . . . . . 1 . . . . 2 . . . . . . . . . . Core 3 | . . . . . . . 1 1 . . . . . . . . . . . 1 Reactor 1 | . . . . . . . . . . . . . . . . . . 1 . . Propulsion 11 | . 3 1 1 4 . . . . . 1 . . . . 1 . . . . . Treads . | . . . . . . . . . . . . . . . . . . . . . Leg . | . . . . . . . . . . . . . . . . . . . . . Wheel . | . . . . . . . . . . . . . . . . . . . . . Hover . | . . . . . . . . . . . . . . . . . . . . . Flight 11 | . 3 1 1 4 . . . . . 1 . . . . 1 . . . . . Utility 21 | . . . . . 1 . 1 3 . 2 . 1 1 . 3 1 1 3 . 4 Device 14 | . . . . . 1 . 1 2 . 2 . 1 . . 2 . 1 1 . 3 Storage 1 | . . . . . . . . . . . . . . . . . . 1 . . Processor 1 | . . . . . . . . . . . . . . . . 1 . . . . Hackware 5 | . . . . . . . . 1 . . . . 1 . 1 . . 1 . 1 Protection . | . . . . . . . . . . . . . . . . . . . . . Artifact . | . . . . . . . . . . . . . . . . . . . . . Weapon 4 | . . 1 . . . . . . . 2 . . . . 1 . . . . . Energy Gun . | . . . . . . . . . . . . . . . . . . . . . Energy Cannon . | . . . . . . . . . . . . . . . . . . . . . Ballistic Gun . | . . . . . . . . . . . . . . . . . . . . . Ballistic Cannon . | . . . . . . . . . . . . . . . . . . . . . Launcher . | . . . . . . . . . . . . . . . . . . . . . Special Weapon 1 | . . . . . . . . . . . . . . . 1 . . . . . Impact Weapon 1 | . . 1 . . . . . . . . . . . . . . . . . . Slashing Weapon 1 | . . . . . . . . . . 1 . . . . . . . . . . Piercing Weapon . | . . . . . . . . . . . . . . . . . . . . . Special Melee Weapon 1 | . . . . . . . . . . 1 . . . . . . . . . . Unidentified Prototypes 11 | . . 1 . 1 1 . . 1 . . . 1 . . 1 . 1 3 . 1 Parts Lost . | . . . . . . . . . . . . . . . . . . . . . Power . | . . . . . . . . . . . . . . . . . . . . . Propulsion . | . . . . . . . . . . . . . . . . . . . . . Utility . | . . . . . . . . . . . . . . . . . . . . . Weapon . | . . . . . . . . . . . . . . . . . . . . . Highest Loss Streak . | . . . . . . . . . . . . . . . . . . . . . Average Slot Usage (%) 93 | . 64 78 79 85 82 88 91 98 100 100 100 100 97 100 97 93 92 87 88 88 Engine 6 | . 17 16 16 14 11 11 10 9 9 7 7 7 6 6 6 5 5 2 . . Core 5 | . . . . . . . 1 9 9 7 7 7 6 6 6 5 5 5 5 5 Flight 39 | . 47 45 46 56 55 55 50 45 45 43 42 42 40 40 37 29 28 27 27 26 Device 17 | . . . . . 3 11 18 18 18 19 21 21 20 20 20 23 22 19 16 20 Processor 1 | . . . . . . . . . . . . . . . . 2 5 5 5 5 Hackware 8 | . . . . . . . . 6 9 7 7 7 8 13 12 11 11 12 16 15 Special Weapon 1 | . . . . . . . . . . . . . . . 3 5 5 5 5 5 Impact Weapon 2 | . . 16 16 14 11 11 10 9 9 2 . . . . . . . . . . Slashing Weapon 4 | . . . . . . . . . . 5 7 7 6 6 6 5 5 5 5 5 Special Melee Weapon 2 | . . . . . . . . . . 4 7 7 6 6 2 . . . . . Naked Turns . | . . . . . . . . . . . . . . . . . . . . . Heaviest Build 34 | 3 3 5 5 5 12 12 18 19 19 29 25 25 25 25 31 31 31 34 31 34 Greatest Support 40 | 3 12 14 15 26 26 26 26 26 34 32 32 32 26 32 40 40 40 40 40 40 Greatest Overweight (x) . | . . . . . . . . . . . . . . . . . . . . . Average Overweight (x) . | . . . . . . . . . . . . . . . . . . . . . Largest Inventory Capacity 3 | . . . . . 1 1 1 1 1 1 1 1 3 3 3 3 3 3 3 3 Average Capacity 1 | . . . . . . 1 1 1 1 1 1 1 2 3 3 3 3 3 3 3 Most Carried 3 | . . . . . 1 1 1 1 1 1 1 1 3 3 3 3 3 3 3 3 Average Carried 1 | . . . . . . 1 1 1 1 . 1 1 2 3 3 3 3 3 3 2 Final Capacity 3 | . . . . . 1 1 1 1 1 1 1 1 3 3 3 3 3 3 3 3 Final Carried 3 | . . . . . 1 1 1 1 1 1 1 1 3 3 3 3 3 3 3 3 Class Distribution -------------------- 83% | Hacker-Sprinter 15% | Sprinter Dominant Class ---------------- Mutant | -10/Materials Sprinter | -9/Materials Sprinter | -9/Mines Sprinter | -8/Materials Sprinter | -8/Storage Sprinter | -8/Garrison Sprinter | -8/Recycling Hacker-Sprinter | -6/Factory Hacker-Sprinter | -6/Garrison Hacker-Sprinter | -6/Factory Hacker-Sprinter | -6/Lower Caves Hacker-Sprinter | -6/Lower Caves Hacker-Sprinter | -6/Zion Hacker-Sprinter | -5/Proximity Caves Hacker-Sprinter | -5/Factory Hacker-Sprinter | -5/Upper Caves Hacker-Sprinter | -5/Upper Caves Hacker-Sprinter | -5/Zhirov Hacker-Sprinter | -4/Proximity Caves Hacker-Sprinter | -4/Factory Resources | -11 -10 -9 -9 -8 -8 -8 -8 -6 -6 -6 -6 -6 -6 -5 -5 -5 -5 -5 -4 -4 ----------- Run | Scr Mat Mat Min Mat Sto Gar Rec Fac Gar Fac Low Low Zio Pro Fac Upp Upp Zhi Pro Fac Matter Collected 984 | 200 . . 45 . . . 73 . . 379 . 20 . . 58 40 20 . 64 85 Remotely . | . . . . . . . . . . . . . . . . . . . . . Salvage Created . | . . . . . . . . . . . . . . . . . . . . . Parts 3 | . . . . . . . . . . . . . . . . . . . . 3 Haulers Intercepted . | . . . . . . . . . . . . . . . . . . . . . Recyclers Shooed . | . . . . . . . . . . . . . . . . . . . . . Parts Field Recycled . | . . . . . . . . . . . . . . . . . . . . . Retrieved Matter . | . . . . . . . . . . . . . . . . . . . . . Parts Self-Destructed 3 | . . . . . . . . . . . . . . . . 2 . . 1 . Prevented 5 | . . . . . . . . . . . . . . . . . . . 5 . Kills | -11 -10 -9 -9 -8 -8 -8 -8 -6 -6 -6 -6 -6 -6 -5 -5 -5 -5 -5 -4 -4 ------- Run | Scr Mat Mat Min Mat Sto Gar Rec Fac Gar Fac Low Low Zio Pro Fac Upp Upp Zhi Pro Fac Combat Hostiles Destroyed 1 | . . . . . . . . . . . . . . . . . . . . 1 Melee 1 | . . . . . . . . . . . . . . . . . . . . 1 Classes Destroyed 1 | . . . . . . . . . . . . . . . . . . . . 1 Grunt 1 | . . . . . . . . . . . . . . . . . . . . 1 Best Kill Streak 1 | . . . . . . . . . . . . . . . . . . . . 1 Combat Bots Only 1 | . . . . . . . . . . . . . . . . . . . . 1 Max Kills in Single Turn 1 | . . . . . . . . . . . . . . . . . . . . 1 Gunslinging . | . . . . . . . . . . . . . . . . . . . . . Exploded . | . . . . . . . . . . . . . . . . . . . . . Melee 1 | . . . . . . . . . . . . . . . . . . . . 1 Uniques/NPCs Destroyed . | . . . . . . . . . . . . . . . . . . . . . Combat | -11 -10 -9 -9 -8 -8 -8 -8 -6 -6 -6 -6 -6 -6 -5 -5 -5 -5 -5 -4 -4 -------- Run | Scr Mat Mat Min Mat Sto Gar Rec Fac Gar Fac Low Low Zio Pro Fac Upp Upp Zhi Pro Fac Damage Taken 851 | . 18 34 . 16 30 42 . 25 77 52 67 . . . 263 140 . . . 87 Core 700 | . 16 34 . 12 27 36 . 21 60 44 53 . . . 211 113 . . . 73 Absorbed by Shields . | . . . . . . . . . . . . . . . . . . . . . Redirected to Core 521 | . 6 . . 12 12 20 . 14 60 24 53 . . . 187 88 . . . 45 Core Remaining (%) 90 | 100 97 . 91 . . . 79 . . . . . . 100 . . . . 73 . Volleys Fired 11 | . . . . . . . . . . . . . . . 4 . . . 2 5 Largest 1 | . . . . . . . . . . . . . . . 1 . . . 1 1 Hottest 40 | . . . . . . . . . . . . . . . 40 . . . 40 40 Shots Fired 11 | . . . . . . . . . . . . . . . 4 . . . 2 5 Gun . | . . . . . . . . . . . . . . . . . . . . . Cannon . | . . . . . . . . . . . . . . . . . . . . . Launcher . | . . . . . . . . . . . . . . . . . . . . . Special 11 | . . . . . . . . . . . . . . . 4 . . . 2 5 Kinetic . | . . . . . . . . . . . . . . . . . . . . . Thermal . | . . . . . . . . . . . . . . . . . . . . . Explosive . | . . . . . . . . . . . . . . . . . . . . . Electromagnetic . | . . . . . . . . . . . . . . . . . . . . . Robot Hit Streak 5 | . . . . . . . . . . . . . . . 3 . . . 5 4 Robot Miss Streak 1 | . . . . . . . . . . . . . . . 1 . . . . 1 Penetration Max . | . . . . . . . . . . . . . . . . . . . . . Secondary Targets . | . . . . . . . . . . . . . . . . . . . . . Shots Hit Robots 13 | . . . . . . . . . . 2 . . . . 4 . . . 2 5 Core Hits 1 | . . . . . . . . . . . . . . . . . . . . 1 Critical Hits . | . . . . . . . . . . . . . . . . . . . . . Critical Kills . | . . . . . . . . . . . . . . . . . . . . . Critical Parts Destroyed . | . . . . . . . . . . . . . . . . . . . . . Melee Attacks 75 | . . . . . 19 . . 6 6 5 . 7 . 2 17 3 3 . 3 4 Impact 32 | . . . . . 19 . . 6 6 1 . . . . . . . . . . Slashing 38 | . . . . . . . . . . 2 . 7 . 2 14 3 3 . 3 4 Piercing . | . . . . . . . . . . . . . . . . . . . . . Sneak Attacks 3 | . . . . . . . . . . 2 . . . . . . . . . 1 Combat Hostiles 2 | . . . . . . . . . . 1 . . . . . . . . . 1 Follow-up Attacks . | . . . . . . . . . . . . . . . . . . . . . Damage Inflicted 151 | . 16 . . . . . . . . . . . . . . . . . . 135 Guns . | . . . . . . . . . . . . . . . . . . . . . Cannons . | . . . . . . . . . . . . . . . . . . . . . Explosions . | . . . . . . . . . . . . . . . . . . . . . Melee 135 | . . . . . . . . . . . . . . . . . . . . 135 Ramming 16 | . 16 . . . . . . . . . . . . . . . . . . . Kinetic . | . . . . . . . . . . . . . . . . . . . . . Thermal . | . . . . . . . . . . . . . . . . . . . . . Explosive . | . . . . . . . . . . . . . . . . . . . . . Electromagnetic . | . . . . . . . . . . . . . . . . . . . . . Impact . | . . . . . . . . . . . . . . . . . . . . . Slashing 135 | . . . . . . . . . . . . . . . . . . . . 135 Piercing . | . . . . . . . . . . . . . . . . . . . . . Highest Corruption 1 | . . 1 1 . . . . . . . . . . . 1 1 1 1 1 . Average Corruption 1 | . . 1 1 . . . . . . . . . . . 1 1 1 1 1 . Corruption Purged . | . . . . . . . . . . . . . . . . . . . . . Effects 1 | . . . . . . . . . . . . . . . 1 . . . . . Targeting Errors 1 | . . . . . . . . . . . . . . . 1 . . . . . Overload Shots . | . . . . . . . . . . . . . . . . . . . . . Overflow Damage . | . . . . . . . . . . . . . . . . . . . . . Projectiles . | . . . . . . . . . . . . . . . . . . . . . Explosions . | . . . . . . . . . . . . . . . . . . . . . Melee . | . . . . . . . . . . . . . . . . . . . . . Knockbacks . | . . . . . . . . . . . . . . . . . . . . . Impact . | . . . . . . . . . . . . . . . . . . . . . Kinetic . | . . . . . . . . . . . . . . . . . . . . . Secondary . | . . . . . . . . . . . . . . . . . . . . . Self-Inflicted Damage 8 | . 8 . . . . . . . . . . . . . . . . . . . Shots . | . . . . . . . . . . . . . . . . . . . . . Rammed 1 | . 1 . . . . . . . . . . . . . . . . . . . Targets Rammed 1 | . 1 . . . . . . . . . . . . . . . . . . . Kicked . | . . . . . . . . . . . . . . . . . . . . . Crushed . | . . . . . . . . . . . . . . . . . . . . . Highest Temperature 110 | . . 1 . . . . . 84 58 90 15 24 . 15 90 11 . 14 26 110 Average Temperature 26 | . . 1 . . . . . 37 34 28 9 11 . 8 31 7 . 5 8 28 Received Heat Transfer 126 | . 6 18 . . 9 . . 6 18 6 18 . . . 18 18 . . . 9 Siege Activations . | . . . . . . . . . . . . . . . . . . . . . Robots Corrupted . | . . . . . . . . . . . . . . . . . . . . . Combat Hostiles . | . . . . . . . . . . . . . . . . . . . . . Parts Fried . | . . . . . . . . . . . . . . . . . . . . . Impact Corruptions . | . . . . . . . . . . . . . . . . . . . . . Robots Melted . | . . . . . . . . . . . . . . . . . . . . . Combat Hostiles . | . . . . . . . . . . . . . . . . . . . . . Parts Melted . | . . . . . . . . . . . . . . . . . . . . . Heat Transferred . | . . . . . . . . . . . . . . . . . . . . . Parts Sabotaged . | . . . . . . . . . . . . . . . . . . . . . Parts Stolen . | . . . . . . . . . . . . . . . . . . . . . Parts Stripped . | . . . . . . . . . . . . . . . . . . . . . Power Chain Reactions . | . . . . . . . . . . . . . . . . . . . . . Missiles Intercepted . | . . . . . . . . . . . . . . . . . . . . . Alert | -11 -10 -9 -9 -8 -8 -8 -8 -6 -6 -6 -6 -6 -6 -5 -5 -5 -5 -5 -4 -4 ------- Run | Scr Mat Mat Min Mat Sto Gar Rec Fac Gar Fac Low Low Zio Pro Fac Upp Upp Zhi Pro Fac Peak Influence 788 | . 33 88 49 33 137 97 127 684 493 788 . . . . 641 . . . . 215 Average Influence 302 | . 9 48 38 28 64 82 103 666 480 480 . . . . 292 . . . . 84 Maximum Alert Level 3 | . . . . . . . . 2 2 3 . . . . 2 . . . . 1 Low Security (%) 46 | 100 100 100 100 100 100 100 100 . . . . . . . 48 . . . . 99 Level 1 25 | . . . . . . . . . . 60 . . . . 20 . . . . . Level 2 21 | . . . . . . . . 100 100 19 . . . . 31 . . . . . Level 3 6 | . . . . . . . . . . 20 . . . . . . . . . . Level 4 . | . . . . . . . . . . . . . . . . . . . . . Level 5 . | . . . . . . . . . . . . . . . . . . . . . High Security . | . . . . . . . . . . . . . . . . . . . . . Max Security . | . . . . . . . . . . . . . . . . . . . . . Squads Dispatched 7 | . 1 1 . . . . . . . 2 . . . . 1 . . . . 2 Investigation 4 | . 1 1 . . . . . . . 1 . . . . . . . . . 1 Extermination 2 | . . . . . . . . . . 1 . . . . 1 . . . . . Reinforcement 1 | . . . . . . . . . . . . . . . . . . . . 1 Assault . | . . . . . . . . . . . . . . . . . . . . . Garrison . | . . . . . . . . . . . . . . . . . . . . . Intercept . | . . . . . . . . . . . . . . . . . . . . . Construction Impeded . | . . . . . . . . . . . . . . . . . . . . . Haulers Reinforced 1 | . . . . . . . . . . . . . . . . . . . . 1 Stealth | -11 -10 -9 -9 -8 -8 -8 -8 -6 -6 -6 -6 -6 -6 -5 -5 -5 -5 -5 -4 -4 --------- Run | Scr Mat Mat Min Mat Sto Gar Rec Fac Gar Fac Low Low Zio Pro Fac Upp Upp Zhi Pro Fac Distress Signals 6 | . 1 1 . . . . . . . 1 . . . . 3 . . . . . Communications Jammed . | . . . . . . . . . . . . . . . . . . . . . Distress Signals . | . . . . . . . . . . . . . . . . . . . . . Times Spotted 129 | . 4 8 . 1 3 9 5 1 6 13 17 1 . 3 27 17 . . 5 9 Peak Tracking Total 15 | . 6 11 . 1 3 10 4 1 10 5 15 1 . 7 14 10 . . 3 3 Tactical Retreats 18 | . . . . . . 1 . . . 3 1 . . . 6 5 . . 1 1 Traps | -11 -10 -9 -9 -8 -8 -8 -8 -6 -6 -6 -6 -6 -6 -5 -5 -5 -5 -5 -4 -4 ------- Run | Scr Mat Mat Min Mat Sto Gar Rec Fac Gar Fac Low Low Zio Pro Fac Upp Upp Zhi Pro Fac Traps Triggered 8 | . 1 . . . . 1 . . 2 . . . . . 3 . . . . 1 Indirectly . | . . . . . . . . . . . . . . . . . . . . . Trap Hack Attempts . | . . . . . . . . . . . . . . . . . . . . . Triggered . | . . . . . . . . . . . . . . . . . . . . . Disarmed . | . . . . . . . . . . . . . . . . . . . . . Reprogrammed . | . . . . . . . . . . . . . . . . . . . . . Reused . | . . . . . . . . . . . . . . . . . . . . . Traps Extracted . | . . . . . . . . . . . . . . . . . . . . . Installed . | . . . . . . . . . . . . . . . . . . . . . Triggered 5 | . . . . . . . . . . . . . . 5 . . . . . . Machines | -11 -10 -9 -9 -8 -8 -8 -8 -6 -6 -6 -6 -6 -6 -5 -5 -5 -5 -5 -4 -4 ---------- Run | Scr Mat Mat Min Mat Sto Gar Rec Fac Gar Fac Low Low Zio Pro Fac Upp Upp Zhi Pro Fac Machines Disabled 7 | . . . . . 2 . . . . 1 . 1 . . 3 . . . . . Max in Single Turn 1 | . . . . . 1 . . . . . . 1 . . 1 . . . . . Machines Sabotaged . | . . . . . . . . . . . . . . . . . . . . . Garrisons Compromised . | . . . . . . . . . . . . . . . . . . . . . Overloaded Fab Kills . | . . . . . . . . . . . . . . . . . . . . . Fab Network Shutdowns 2 | . . . . . . . . . . 1 . . . . 1 . . . . . Hacking | -11 -10 -9 -9 -8 -8 -8 -8 -6 -6 -6 -6 -6 -6 -5 -5 -5 -5 -5 -4 -4 --------- Run | Scr Mat Mat Min Mat Sto Gar Rec Fac Gar Fac Low Low Zio Pro Fac Upp Upp Zhi Pro Fac Machines Accessed 48 | . 1 2 . . 4 . 5 2 . 10 . . . 1 13 . 2 4 . 4 Terminals 27 | . 1 2 . . 3 . 2 1 . 6 . . . 1 9 . 1 . . 1 Fabricators 5 | . . . . . . . . . . 3 . . . . 1 . . . . 1 Repair Stations . | . . . . . . . . . . . . . . . . . . . . . Recycling Units 5 | . . . . . . . 3 . . . . . . . 1 . . . . 1 Scanalyzers . | . . . . . . . . . . . . . . . . . . . . . Garrison Access 6 | . . . . . 1 . . 1 . 1 . . . . 2 . . . . 1 Total Hacks 156 | . 2 6 . . 16 . 10 4 . 40 . . . 3 40 . 4 17 . 14 Successful 98 | . 1 1 . . 10 . 8 4 . 18 . . . 1 23 . 3 17 . 12 Failed 58 | . 1 5 . . 6 . 2 . . 22 . . . 2 17 . 1 . . 2 Catastrophic 8 | . . . . . . . 1 . . 3 . . . 1 3 . . . . . Database Lockouts . | . . . . . . . . . . . . . . . . . . . . . Manual 85 | . . 3 . . 12 . 4 3 . 22 . . . 3 28 . 4 . . 6 Terminals 96 | . 2 6 . . 15 . 7 3 . 23 . . . 3 30 . 3 . . 4 Fabricators 23 | . . . . . . . . . . 14 . . . . 5 . . . . 4 Repair Stations . | . . . . . . . . . . . . . . . . . . . . . Recycling Units 10 | . . . . . . . 3 . . . . . . . 2 . . . . 5 Scanalyzers . | . . . . . . . . . . . . . . . . . . . . . Garrison Access 9 | . . . . . 1 . . 1 . 3 . . . . 3 . . . . 1 Terminal Hacks 52 | . 1 1 . . 6 . 4 1 . 5 . . . 1 10 . 3 17 . 3 Record 5 | . . . . . . . . . . . . . . . . . . 5 . . Part Schematic 4 | . . . . . . . . . . . . . . . . . . 4 . . Robot Schematic 4 | . . . . . . . . . . 1 . . . . 3 . . . . . Robot Analysis 5 | . . . . . . . . . . . . . . . . . 1 4 . . Prototype ID Bank 12 | . . . . . 5 . 2 . . . . . . . 1 . . 4 . . Open Door 1 | . . . . . . . . . . . . . . . . . 1 . . . Level Access Points 5 | . 1 . . . . . 1 . . . . . . 1 1 . . . . 1 Branch Access Points 3 | . . . . . . . . . . 1 . . . . 1 . 1 . . . Terminal Index 1 | . . . . . . . . 1 . . . . . . . . . . . . Recycling Unit Index 1 | . . . . . . . 1 . . . . . . . . . . . . . Alert Level 1 | . . . . . . . . . . 1 . . . . . . . . . . Unreport Threat 2 | . . . . . . . . . . . . . . . 2 . . . . . Locate Traps 4 | . . . . . . . . . . 1 . . . . 2 . . . . 1 Registered Prototypes 3 | . . . . . 1 . . . . 1 . . . . . . . . . 1 Zone Layout 1 | . . 1 . . . . . . . . . . . . . . . . . . Fabricator Hacks 9 | . . . . . . . . . . 6 . . . . 2 . . . . 1 Load Schematic 4 | . . . . . . . . . . 2 . . . . 1 . . . . 1 Build 5 | . . . . . . . . . . 4 . . . . 1 . . . . . Repair Station Hacks . | . . . . . . . . . . . . . . . . . . . . . Recycling Unit Hacks 7 | . . . . . . . 3 . . . . . . . 2 . . . . 2 Retrieve Components 7 | . . . . . . . 3 . . . . . . . 2 . . . . 2 Scanalyzer . | . . . . . . . . . . . . . . . . . . . . . Garrison Access Hacks 3 | . . . . . 1 . . 1 . . . . . . 1 . . . . . Unlock Access 3 | . . . . . 1 . . 1 . . . . . . 1 . . . . . Unauthorized Hacks 67 | . . 3 . . 8 . 2 4 . 17 . . . . 21 . . . . 12 Terminals 13 | . . . . . 3 . 1 2 . 2 . . . . 4 . . . . 1 Assimilate 1 | . . . . . 1 . . . . . . . . . . . . . . . Botnet 10 | . . . . . 2 . 1 1 . 2 . . . . 3 . . . . 1 Operators 2 | . . . . . . . . 1 . . . . . . 1 . . . . . Fabricators 7 | . . . . . . . . . . 4 . . . . 2 . . . . 1 Report 1 | . . . . . . . . . . 1 . . . . . . . . . . Prioritize 2 | . . . . . . . . . . 1 . . . . 1 . . . . . Siphon 3 | . . . . . . . . . . 1 . . . . 1 . . . . 1 Haulers 1 | . . . . . . . . . . 1 . . . . . . . . . . Repair Stations . | . . . . . . . . . . . . . . . . . . . . . Recycling Units 3 | . . . . . . . . . . . . . . . . . . . . 3 Reject 1 | . . . . . . . . . . . . . . . . . . . . 1 Recyclers 1 | . . . . . . . . . . . . . . . . . . . . 1 Mask 1 | . . . . . . . . . . . . . . . . . . . . 1 Scanalyzers . | . . . . . . . . . . . . . . . . . . . . . Garrison Access 4 | . . . . . . . . . . 1 . . . . 2 . . . . 1 Reprogram 4 | . . . . . . . . . . 1 . . . . 2 . . . . 1 Data Cores Recovered . | . . . . . . . . . . . . . . . . . . . . . Used . | . . . . . . . . . . . . . . . . . . . . . Hacking Detections 34 | . 1 2 . . 4 . 2 1 . 9 . . . 1 10 . 1 . . 3 Full Trace Events 3 | . . 1 . . . . . . . 1 . . . . . . . . . 1 Feedback Events 1 | . . 1 . . . . . . . . . . . . . . . . . . Corruption 1 | . . 1 . . . . . . . . . . . . . . . . . . Feedback Blocked . | . . . . . . . . . . . . . . . . . . . . . Robot Schematics Acquired 4 | . . . . . . . . . . 1 . . . . 3 . . . . . Robots Built 8 | . . . . . . . . . . 6 . . . . 2 . . . . . Matter 915 | . . . . . . . . . . 663 . . . . 252 . . . . . Time 452 | . . . . . . . . . . 318 . . . . 134 . . . . . Total Robot Build Rating 34 | . . . . . . . . . . 26 . . . . 8 . . . . . Part Schematics Acquired 4 | . . . . . . . . . . . . . . . . . . 4 . . Parts Built . | . . . . . . . . . . . . . . . . . . . . . Matter . | . . . . . . . . . . . . . . . . . . . . . Time . | . . . . . . . . . . . . . . . . . . . . . Total Part Build Rating . | . . . . . . . . . . . . . . . . . . . . . Parts Repaired . | . . . . . . . . . . . . . . . . . . . . . Time . | . . . . . . . . . . . . . . . . . . . . . Parts Recycled . | . . . . . . . . . . . . . . . . . . . . . Recycled Matter . | . . . . . . . . . . . . . . . . . . . . . Retrieved Matter . | . . . . . . . . . . . . . . . . . . . . . Retrieved Components 5 | . . . . . . . 5 . . . . . . . . . . . . . Parts Scanalyzed . | . . . . . . . . . . . . . . . . . . . . . Part Schematics Acquired . | . . . . . . . . . . . . . . . . . . . . . Parts Damaged . | . . . . . . . . . . . . . . . . . . . . . Bothacking | -11 -10 -9 -9 -8 -8 -8 -8 -6 -6 -6 -6 -6 -6 -5 -5 -5 -5 -5 -4 -4 ------------ Run | Scr Mat Mat Min Mat Sto Gar Rec Fac Gar Fac Low Low Zio Pro Fac Upp Upp Zhi Pro Fac Used RIF Installer 2 | . . . . . . 1 . . 1 . . . . . . . . . . . Coupler Efficiency 1 | . . . . . . . . . 1 . . . . . . . . . . . Robots Hacked 8 | . . . . . . . . . . 1 . . . . 3 . . . 2 2 Non-combat 1 | . . . . . . . . . . 1 . . . . . . . . . . Combat 7 | . . . . . . . . . . . . . . . 3 . . . 2 2 Robot Hacks Applied 8 | . . . . . . . . . . 1 . . . . 3 . . . 2 2 no_distress 1 | . . . . . . . . . . 1 . . . . . . . . . . formatsys_high 7 | . . . . . . . . . . . . . . . 3 . . . 2 2 Relay Couplers Released . | . . . . . . . . . . . . . . . . . . . . . Attached 2 | . . . . . . . . . . . . . 1 . . . . . . 1 Robots Rewired 1 | . . . . . . . . . . . . . . . . . . . . 1 Allies Hacked 2 | . . . . . . . . . . 1 1 . . . . . . . . . Hacks Repelled . | . . . . . . . . . . . . . . . . . . . . . Allies | -11 -10 -9 -9 -8 -8 -8 -8 -6 -6 -6 -6 -6 -6 -5 -5 -5 -5 -5 -4 -4 -------- Run | Scr Mat Mat Min Mat Sto Gar Rec Fac Gar Fac Low Low Zio Pro Fac Upp Upp Zhi Pro Fac Total Allies 24 | . . . 2 . 1 . . . . 7 1 . . . 5 . . . 2 6 Largest Group 5 | . . . 2 . 1 . . . . 5 2 . . . 2 . . . 2 5 Highest-Rated Group 246 | . . . 45 . 10 . . . . 184 74 . . . 108 . . . 108 246 Highest-Rated Ally 54 | . . . 31 . 10 . . . . 41 47 . . . 54 . . . 54 54 Total Orders 4 | . . . . . . . . . . 2 . . . . 2 . . . . . GOTO 2 | . . . . . . . . . . 1 . . . . 1 . . . . . FOLLOW 2 | . . . . . . . . . . 1 . . . . 1 . . . . . Ally Attacks 85 | . . . . . . . . . . 31 4 . . . 12 . . . 9 29 Total Damage 2832 | . . . . . . . . . . 1041 51 . . . 502 . . . 265 973 Kills 20 | . . . . . . . . . . 7 . . . . 5 . . . 2 6 Allies Corrupted 3 | . . . . . . . . . . 3 . . . . . . . . . . Allies Melted . | . . . . . . . . . . . . . . . . . . . . . Intel | -11 -10 -9 -9 -8 -8 -8 -8 -6 -6 -6 -6 -6 -6 -5 -5 -5 -5 -5 -4 -4 ------- Run | Scr Mat Mat Min Mat Sto Gar Rec Fac Gar Fac Low Low Zio Pro Fac Upp Upp Zhi Pro Fac Robot Analysis Total 5 | . . . . . . . . . . . . . . . . . 1 4 . . Derelict Logs Recovered 4 | . . . . . . . . . . . 1 1 . 1 . . 1 . . . Drone Launches 4 | . . . . . . . . . . 4 . . . . . . . . . . Drone Recoveries . | . . . . . . . . . . . . . . . . . . . . . Exploration | -11 -10 -9 -9 -8 -8 -8 -8 -6 -6 -6 -6 -6 -6 -5 -5 -5 -5 -5 -4 -4 ------------- Run | Scr Mat Mat Min Mat Sto Gar Rec Fac Gar Fac Low Low Zio Pro Fac Upp Upp Zhi Pro Fac Turns Passed 2609 | 2 41 42 49 15 178 31 66 109 54 655 54 106 31 58 428 122 96 45 161 266 Spaces Moved 6779 | 2 82 112 137 25 379 100 214 313 116 1338 229 367 88 233 1283 457 346 148 264 546 Core 10 | 2 8 . . . . . . . . . . . . . . . . . . . Treads . | . . . . . . . . . . . . . . . . . . . . . Legs . | . . . . . . . . . . . . . . . . . . . . . Wheels . | . . . . . . . . . . . . . . . . . . . . . Hover . | . . . . . . . . . . . . . . . . . . . . . Flight 6769 | . 74 112 137 25 379 100 214 313 116 1338 229 367 88 233 1283 457 346 148 264 546 Fastest Speed 11 | 50 34 32 32 23 23 23 23 23 11 20 20 20 23 20 20 24 24 24 24 24 Average Speed 23 | 50 38 34 32 30 28 25 27 25 21 21 22 22 23 22 22 24 24 24 24 24 Slowest Speed 50 | 50 50 37 32 32 29 29 29 26 23 23 23 23 23 23 24 24 24 24 24 24 Overloaded Moves 34 | . . . . . . . . . 34 . . . . . . . . . . . Propulsion Burnouts . | . . . . . . . . . . . . . . . . . . . . . Robots Hopped 74 | . 2 4 . . . . 4 9 2 11 1 1 . . 21 2 1 . . 16 Cave-ins Triggered . | . . . . . . . . . . . . . . . . . . . . . Exploration Rate (%) 38 | 2 29 24 38 4 48 35 61 13 37 40 62 58 12 42 42 79 58 59 51 14 Regions Visited 20 Branch Regions 11 Pre-discovered Areas 4 | . . . . . . . . . . . 1 . . . . . . 3 . . Known Exits Taken 11 | . 1 . . . 1 . 1 1 . 1 . . . 1 1 1 1 1 1 . Unknown Exits Taken 7 | 1 . 1 1 1 . . . . . . 1 1 1 . . . . . . . Scrap Searched 9 | . . . 1 . . . . . . . 4 2 . . . 1 1 . . . Spaces Dug 45 | . . . . . 8 . . 3 . 3 . 6 . 2 11 3 3 . 3 3 Terrain Destroyed 45 | . . . . . 8 . . 3 . 3 . 6 . 2 11 3 3 . 3 3 Melee 45 | . . . . . 8 . . 3 . 3 . 6 . 2 11 3 3 . 3 3 Projectile . | . . . . . . . . . . . . . . . . . . . . . AOE . | . . . . . . . . . . . . . . . . . . . . . Actions | -11 -10 -9 -9 -8 -8 -8 -8 -6 -6 -6 -6 -6 -6 -5 -5 -5 -5 -5 -4 -4 --------- Run | Scr Mat Mat Min Mat Sto Gar Rec Fac Gar Fac Low Low Zio Pro Fac Upp Upp Zhi Pro Fac Total 7551 | 3 88 110 141 30 418 104 214 325 132 1687 229 377 97 234 1380 461 352 156 355 658 Wait 603 | . 5 . 3 . 17 . 3 8 . 321 2 2 1 . 64 3 2 . 86 86 Move 6620 | 1 78 103 136 24 378 99 205 296 112 1315 226 364 87 232 1242 452 343 147 263 517 Hop 66 | . 2 4 . . . . 4 8 1 11 1 1 . . 18 2 1 . . 13 Pick Up 9 | . . . . . 1 . . . . 3 . . 3 . . . . . . 2 Fast Attach 42 | . 3 2 1 4 2 . 2 4 . 5 . 2 1 . 4 1 2 5 . 4 Attach 2 | . . . . . . . . . . 1 . . . . . . . . . 1 Detach 1 | . . . . . . . . . . 1 . . . . . . . . . . Swap 2 | . . . . . . . . . . 1 . . . . 1 . . . . . Drop 32 | 2 . 1 1 2 1 . . 3 . 6 . 1 1 . 4 . 1 4 . 5 Fire 11 | . . . . . . . . . . . . . . . 4 . . . 2 5 Melee 75 | . . . . . 19 . . 6 6 5 . 7 . 2 17 3 3 . 3 4 Ram . | . . . . . . . . . . . . . . . . . . . . . Kick . | . . . . . . . . . . . . . . . . . . . . . Crush . | . . . . . . . . . . . . . . . . . . . . . Escape Stasis 37 | . . . . . . 5 . . 13 . . . . . 19 . . . . . Rewire 9 | . . . . . . . . . . 1 . . . . . . . . 1 7 Trap . | . . . . . . . . . . . . . . . . . . . . . Miscellaneous 42 | . . . . . . . . . . 17 . . 4 . 7 . . . . 14 Route ------- -11/Scrapyard -10/Materials (discovered 3 exits: *Mat x3) -9/Materials -9/Mines -8/Materials -8/Storage -8/Garrison -8/Recycling -6/Factory -6/Garrison -6/Factory (discovered 2 exits: *Low x2) -6/Lower Caves -6/Lower Caves (discovered 2 exits: *Fac / [*Zio]) -6/Zion -5/Proximity Caves -5/Factory (discovered 9 exits: *Fac x4 / *Upp x2 / *Ext x2 / Gar) -5/Upper Caves -5/Upper Caves -5/Zhirov -4/Proximity Caves -4/Factory (discovered 4 exits: *Res x4) History --------- Turn | Location | Event 2 | -11/Scrapyard | Discovered new exit (range 1) 3 | -11/Scrapyard | Entered Materials 9 | -10/Materials | Upgraded with Propulsion slot (x1) 11 | -10/Materials | Upgraded with Propulsion slot (x1) 28 | -10/Materials | Identified exit to Materials 44 | -10/Materials | Entered another Materials area 46 | -9/Materials | Reached level 2 81 | -9/Materials | Discovered new exit (range 14) 86 | -9/Materials | Entered Mines 131 | -9/Mines | Discovered new exit (range 8) 135 | -9/Mines | Entered Materials 137 | -8/Materials | Reached level 3 139 | -8/Materials | Discovered new exit (range 4) 143 | -8/Materials | Upgraded with Propulsion slot (x1) 147 | -8/Materials | Upgraded with Propulsion slot (x1) 150 | -8/Materials | Entered Storage 152 | -8/Storage | Reached level 4 177 | -8/Storage | Upgraded with Power slot (x1) 326 | -8/Storage | Identified exit to Garrison 328 | -8/Storage | Entered Garrison 341 | -8/Garrison | Build established: Sprinter 346 | -8/Garrison | Triggered checkpoint 354 | -8/Garrison | Discovered new exit (range 14) 358 | -8/Garrison | Installed Relay Interface Framework 359 | -8/Garrison | Entered Recycling 361 | -8/Recycling | Reached level 5 365 | -8/Recycling | Upgraded with Utility slot (x1) 370 | -8/Recycling | Identified exit to Factory 377 | -8/Recycling | Spotter reported a threat 378 | -8/Recycling | Spotter reported a threat 378 | -8/Recycling | Spotter reported a threat 393 | -8/Recycling | Spotter reported a threat 425 | -8/Recycling | Entered Factory 427 | -6/Factory | Reached level 6 439 | -6/Factory | Upgraded with Utility slot (x1) 534 | -6/Factory | Identified exit to Garrison 534 | -6/Factory | Entered Garrison 536 | -6/Garrison | Reached level 7 536 | -6/Garrison | Expanded RIF knowledge: Coupler Efficiency 582 | -6/Garrison | Triggered checkpoint 586 | -6/Garrison | Discovered new exit (range 8) 588 | -6/Garrison | Entered Factory 643 | -6/Factory | Upgraded with Propulsion slot (x1) 670 | -6/Factory | Fabricated H-66 Slayer (x2) 752 | -6/Factory | Upgraded with Utility slot (x1) 786 | -6/Factory | Upgraded with Weapon slot (x1) 807 | -6/Factory | Build established: Hacker-Sprinter 937 | -6/Factory | Fabricated P-60 Hacker (x2) 985 | -6/Factory | Local fabrication network quarantined 1033 | -6/Factory | Fabricated P-60 Hacker (x2) 1042 | -6/Factory | Discovered new exit (range 15) 1103 | -6/Factory | Hacker 5c assimilated hostile Y-54 Guardian 1108 | -6/Factory | Identified exit to Lower Caves 1175 | -6/Factory | Reached level 8 1243 | -6/Factory | Entered Lower Caves 1243 | -6/Lower Caves | Accompanied by 3 allies 1253 | -6/Lower Caves | Learned location of Zion (-6) 1295 | -6/Lower Caves | Discovered new exit (range 12) 1297 | -6/Lower Caves | Entered another Lower Caves area 1307 | -6/Lower Caves | Discovered new exit (range 7) 1342 | -6/Lower Caves | Found Alien Artifact 1342 | -6/Lower Caves | Identified Dimensional Node Initializer 1342 | -6/Lower Caves | Initialized slip node 1371 | -6/Lower Caves | Attracted the attention of an 0b10 checkpoint 1394 | -6/Lower Caves | Learned 4 Factory zone layouts 1402 | -6/Lower Caves | Discovered new exit (range 6) 1403 | -6/Lower Caves | Entered Zion 1405 | -6/Zion | Reached level 9 1416 | -6/Zion | Upgraded with Utility slot (x1) 1417 | -6/Zion | Found Relay Coupler [Programmer] 1418 | -6/Zion | Found Relay Coupler [Programmer] 1420 | -6/Zion | Found Relay Coupler [Programmer] 1426 | -6/Zion | Found Relay Coupler [Programmer] 1431 | -6/Zion | Discovered new exit (range 10) 1434 | -6/Zion | Entered Proximity Caves 1436 | -5/Proximity Caves | Learned Factory emergency access door positions 1440 | -5/Proximity Caves | Spotted B-75 Beast 1469 | -5/Proximity Caves | Identified exit to Factory 1492 | -5/Proximity Caves | Reached level 10 1492 | -5/Proximity Caves | Entered Factory 1494 | -5/Factory | Reached level 11 1518 | -5/Factory | Identified exit to Factory 1533 | -5/Factory | Discovered new exit (range 11) 1546 | -5/Factory | Identified exit to Garrison 1559 | -5/Factory | Identified exit to Upper Caves 1559 | -5/Factory | Identified exit to Extension 1662 | -5/Factory | Fabricated P-60 Hacker? 1690 | -5/Factory | Local fabrication network quarantined 1719 | -5/Factory | Spotted B-75 Beast 1880 | -5/Factory | Upgraded with Utility slot (x1) 1920 | -5/Factory | Entered Upper Caves 1922 | -5/Upper Caves | Attracted the attention of an 0b10 checkpoint 1922 | -5/Upper Caves | Reached level 12 1959 | -5/Upper Caves | Spotted B-75 Beast 1978 | -5/Upper Caves | Upgraded with Utility slot (x1) 2014 | -5/Upper Caves | Encountered a Warlord checkpoint 2027 | -5/Upper Caves | Discovered new exit (range 5) 2027 | -5/Upper Caves | Identified exit to Upper Caves 2042 | -5/Upper Caves | Entered another Upper Caves area 2092 | -5/Upper Caves | Spotted B-75 Beast 2110 | -5/Upper Caves | Found Alien Artifact 2110 | -5/Upper Caves | Identified Core Expander 2110 | -5/Upper Caves | Installed Core Expander, added new Weapon slot 2120 | -5/Upper Caves | Learned Factory security intel 2136 | -5/Upper Caves | Discovered new exit (range 9) 2138 | -5/Upper Caves | Identified exit to Zhirov 2138 | -5/Upper Caves | Entered Zhirov 2138 | -5/Zhirov | Discovered new exit (range 3) 2139 | -5/Zhirov | Identified exit to Proximity Caves 2143 | -5/Zhirov | Met Zhirov 2147 | -5/Zhirov | Learned location of Quarantine (-3) 2147 | -5/Zhirov | Learned location of Testing (-2) 2147 | -5/Zhirov | Learned location of Command (-1) 2149 | -5/Zhirov | Zhirov requested help retrieving the SGEMP Prototype 2153 | -5/Zhirov | Found Alien Artifact 2153 | -5/Zhirov | Identified Integrated Reactor 2153 | -5/Zhirov | Installed Integrated Reactor, increased core energy generation (+2%) 2183 | -5/Zhirov | Entered Proximity Caves 2185 | -4/Proximity Caves | Reached level 13 2336 | -4/Proximity Caves | Discovered exit to Factory (range 14) 2344 | -4/Proximity Caves | Reached level 14 2344 | -4/Proximity Caves | Entered Factory 2344 | -4/Factory | Accompanied by 1 ally 2346 | -4/Factory | Reached level 15 2350 | -4/Factory | Discovered new exit (range 5) 2351 | -4/Factory | Identified exit to Research 2356 | -4/Factory | Upgraded with Utility slot (x1) 2528 | -4/Factory | Allied Derelicts emerged from ambush trap array 2610 | -4/Factory | Self-destructed Last Messages --------------- 02588_ Sage 7b fails to hack G-67 Veteran. 02599_ ALERT: Hostile activity reported, dispatching reinforcements to area. 02602_ Connecting with Recycling Unit... >>Trojan(Mask) Trojan loaded successfully. Testing... Masking routine running. >>Trojan(Recyclers) Trojan loaded successfully. Testing... Recycler tracking enabled and active. >>Trojan(Reject) Trojan loaded successfully. Testing... Ejection routine running. 02606_ G-67 Veteran misfires. 02607_ Sage 7b hacks G-67 Veteran, rebooting. 02608_ Sneak attack on G-67 Veteran. 02608_ G-67 Veteran destroyed. Map ----- +----------------------------------------------------+ | ?????????????????????????????????????????? | | ?????????????????????????????????????????? | | ?????????????????????????????????????????? | | ?????????????????????????????????????????? | | ????????????????????????????????????????#? | | ????????????????????????????????????????# | | ????????????????????????????????????????# | | ????????????????????????????????????????? | | ?????????????????????????????????????????# | | ????????Y????????????????????????????????# | | ?????????????????????????????????????????# | | ?????????????????????????????????????????# | | ???????????????????????????????????????### | | ???????????????????????????????????????# | | ??????????h????????????????????????????# | | ?????????h?????????????????????????????# | | ??????????????#####+#####??????????????+ | | ??????????????# #??????????????# | | ??????????????# """ #??????????????# | | ??????????????# "Y" #??????????????# | | ??????????????# R #??????????????## | | ??????????????#####"##################### | | ??????????????????##! | | ????????????????#### | | ????????# ######*%! = | | ????????# =*=%@%!%Ag !%! | | ????????# #######p!=! g | [[ | | ????????????????##############+### [! | | ?????????????????????????# # [! | | ???????????????########### # | | ???????????????[ ## # // | | ?????????R????? ## # // | | ??????????????? ## # | | ?????????A????? """ """ ## # [![ | | ??????????????# """ """ ############+####+ | | ??????????????+ """ """=##### ""G"" % | | ??????????????# = + / "" "" | | ??????????????# ##### | | ??????????????###########???# """ """ """ | | ????????????????????????????# """ """ """ | | ????????????????????????????# """ """ """ | | ????????????????????????????# | | ????????????????????????????############## | | ?????????????????????????????????????????? | | ?????????????????????????????????????????? | | ?????????????????????????????????????????? | | ?????????????????????????????????????????? | | ?????????????????????????????????????????? | | ?????????????????????????????????????????? | | ?????????????????????????????????????????? | +----------------------------------------------------+ Best States ------------- Heat Dissipation 63 Energy Generation 65 Energy Capacity 365 Matter Stores 300 Matter Capacity 300 Sight Range 16 Robot Scan Range 20 Terrain Scan Density 10 Power Amplification 30 Resistance: TH 30 Evasion (%) 76 Offensive Hacking 38 Defensive Hacking 10 Item Schematics ----------------- Assault Drone Bay | -5/Zhirov | Free Exp. Heat Sink | -5/Zhirov | Free Exp. Optical Array | -5/Zhirov | Free Imp. Arc Thrower | -5/Zhirov | Free Robot Schematics ------------------ P-60 Hacker | -6/Factory | Hacked P-70 Sage | -5/Factory | Hacked H-66 Slayer | -5/Factory | Hacked G-50 Soldier | -5/Factory | Hacked Fabricated ------------ H-66 Slayer | x2 | -6/Factory | Preloaded P-60 Hacker | x2 | -6/Factory P-60 Hacker | x2 | -6/Factory P-60 Hacker | x2 | -5/Factory Alien Tech Used ----------------- Dimensional Node Initializer Core Expander Integrated Reactor Achievements -------------- None Challenges ------------ None RPGLIKE | -11 -10 -9 -9 -8 -8 -8 -8 -6 -6 -6 -6 -6 -6 -5 -5 -5 -5 -5 -4 -4 --------- Run | Scr Mat Mat Min Mat Sto Gar Rec Fac Gar Fac Low Low Zio Pro Fac Upp Upp Zhi Pro Fac Levels Raised 14 | . . 1 . 1 1 . 1 1 1 1 . . 1 1 1 1 . . 2 1 XP Earned 25279 | 3000 190 1500 635 1500 1185 850 1262 1500 850 1405 500 500 500 1446 2224 500 500 650 1939 2643 XP Spent 20350 | . 1300 700 . 2500 750 400 1050 1700 . 3300 . . 2650 . 1700 2000 . . . 2300 Upgrades 25 | . 2 3 . 2 2 2 2 3 . 3 . . 3 . 1 1 . . . 1 Power Slot 1 | . . . . . 1 . . . . . . . . . . . . . . . Propulsion Slot 5 | . 2 . . 2 . . . . . 1 . . . . . . . . . . Utility Slot 7 | . . . . . . . 1 1 . 1 . . 1 . 1 1 . . . 1 Weapon Slot 1 | . . . . . . . . . . 1 . . . . . . . . . . Energy Generation 2 | . . 1 . . . . 1 . . . . . . . . . . . . . Inventory Capacity 3 | . . . . . 1 . . . . . . . 2 . . . . . . . Hack Attack % 2 | . . 1 . . . . . 1 . . . . . . . . . . . . Hack Defense % 2 | . . 1 . . . . . 1 . . . . . . . . . . . . KI Damage % 1 | . . . . . . 1 . . . . . . . . . . . . . . TH Damage % 1 | . . . . . . 1 . . . . . . . . . . . . . . Protomatter Created 71 | . . . . . . . . . . . . . . . . . . . . 71 Integrity Restored 813 | . . . . . . . . . . 292 . . 67 . 162 . . . . 292 Core 683 | . . . . . . . . . . 250 . . 53 . 162 . . . . 218 Parts 130 | . . . . . . . . . . 42 . . 14 . . . . . . 74 Protomatter Decayed 330 | . . . . . . . . . . 81 70 . . . . 128 . . . 51 Game ------ Seed SensorSupersonicSystem Manual? 0 Play Time 01:27:36 Cumulative 630.2 hours Start 2020.01.04 @ 16:45:27 End 2020.01.04 @ 19:32:43 Sessions 5 Manual Loads 0 Difficulty Rogue Special Mode Winter2019/RPGLIKE Game No. 402 Rogue 402 Adventurer 0 Explorer 0 Win Type - Total 102 Types 68/6/8/10/5/1/4 Lore% 97 Gallery% 95 Achievement% 80 Wizard Run 0 Options --------- ASCII 0 Keyboard 0 Movement Numpad Keybinds 0 Fullscreen 2 Font 18/SmallcapsGlow Map View 76x50 Tactical HUD 1 Map Filters NONE Filters NONE Steam 1 RUN: 050c47a5-eb26-474d-bedf-8b2ec730c969